Workbook

Sheet 1
A1: Место | B1: Номер спортсмена | C1: Команда | D1: ФИО | E1: Попытка 1 | F1: Попытка 2 | G1: Лучшая
A2: =IF(OR(ISBLANK(D2),C2="лично"),"",COUNTA($D$2:D2)) -> 1 | B2: 111 | C2: Mini | D2: Paul Lopez | E2: 27.2 | F2: 13.13 | G2: =IF(E2+F2,MIN(E2+(E2=0)*999+(F2+(F2=0)*999)%%+B2%%%%,F2+(F2=0)*999+(E2+(E2=0)*999)%%+B2%%%%),"без зачета") -> 13.13272111
A3: =IF(OR(ISBLANK(D3),C3="лично"),"",COUNTA($D$2:D3)) -> 2 | B3: 76 | C3: Suzuki | D3: James Campbell | E3: 15 | F3: 23.55 | G3: =IF(E3+F3,MIN(E3+(E3=0)*999+(F3+(F3=0)*999)%%+B3%%%%,F3+(F3=0)*999+(E3+(E3=0)*999)%%+B3%%%%),"без зачета") -> 15.00235576
A4: =IF(OR(ISBLANK(D4),C4="лично"),"",COUNTA($D$2:D4)) -> 3 | B4: 123 | C4: Renault | D4: Kimberly Jones | E4: 25.44 | F4: 15 | G4: =IF(E4+F4,MIN(E4+(E4=0)*999+(F4+(F4=0)*999)%%+B4%%%%,F4+(F4=0)*999+(E4+(E4=0)*999)%%+B4%%%%),"без зачета") -> 15.00254523
A5: =IF(OR(ISBLANK(D5),C5="лично"),"",COUNTA($D$2:D5)) -> 4 | B5: 665 | C5: KIA | D5: James Gonzales | E5: 15 | F5: 27.33 | G5: =IF(E5+F5,MIN(E5+(E5=0)*999+(F5+(F5=0)*999)%%+B5%%%%,F5+(F5=0)*999+(E5+(E5=0)*999)%%+B5%%%%),"без зачета") -> 15.00273965
A6: =IF(OR(ISBLANK(D6),C6="лично"),"",COUNTA($D$2:D6)) -> 5 | B6: 12 | C6: Nissan | D6: Carol Hughes | E6: 16.01 | F6: 16.27 | G6: =IF(E6+F6,MIN(E6+(E6=0)*999+(F6+(F6=0)*999)%%+B6%%%%,F6+(F6=0)*999+(E6+(E6=0)*999)%%+B6%%%%),"без зачета") -> 16.01162712
A7: =IF(OR(ISBLANK(D7),C7="лично"),"",COUNTA($D$2:D7)) -> 6 | B7: 22 | C7: Volkswagen | D7: Margaret Jones | E7: 16.27 | F7: 16.01 | G7: =IF(E7+F7,MIN(E7+(E7=0)*999+(F7+(F7=0)*999)%%+B7%%%%,F7+(F7=0)*999+(E7+(E7=0)*999)%%+B7%%%%),"без зачета") -> 16.01162722
A8: =IF(OR(ISBLANK(D8),C8="лично"),"",COUNTA($D$2:D8)) -> 7 | B8: 65 | C8: Volkswagen | D8: Nancy Turner | E8: 0 | F8: 16.46 | G8: =IF(E8+F8,MIN(E8+(E8=0)*999+(F8+(F8=0)*999)%%+B8%%%%,F8+(F8=0)*999+(E8+(E8=0)*999)%%+B8%%%%),"без зачета") -> 16.55990065
A9: =IF(OR(ISBLANK(D9),C9="лично"),"",COUNTA($D$2:D9)) -> 8 | B9: 56 | C9: Porsche | D9: Kimberly Bailey | E9: 19.92 | F9: 17.02 | G9: =IF(E9+F9,MIN(E9+(E9=0)*999+(F9+(F9=0)*999)%%+B9%%%%,F9+(F9=0)*999+(E9+(E9=0)*999)%%+B9%%%%),"без зачета") -> 17.02199256
A10: =IF(OR(ISBLANK(D10),C10="лично"),"",COUNTA($D$2:D10)) -> 9 | B10: 233 | C10: Fiat | D10: Mark Cooper | E10: 17.25 | F10: 17.12 | G10: =IF(E10+F10,MIN(E10+(E10=0)*999+(F10+(F10=0)*999)%%+B10%%%%,F10+(F10=0)*999+(E10+(E10=0)*999)%%+B10%%%%),"без зачета") -> 17.12172733
A11: =IF(OR(ISBLANK(D11),C11="лично"),"",COUNTA($D$2:D11)) -> 10 | B11: 122 | C11: Nissan | D11: Sandra Torres | E11: 17.12 | F11: 0 | G11: =IF(E11+F11,MIN(E11+(E11=0)*999+(F11+(F11=0)*999)%%+B11%%%%,F11+(F11=0)*999+(E11+(E11=0)*999)%%+B11%%%%),"без зачета") -> 17.21990122
A12: =IF(OR(ISBLANK(D12),C12="лично"),"",COUNTA($D$2:D12)) -> 11 | B12: 442 | C12: Porsche | D12: William Perry | E12: 0 | F12: 0 | G12: =IF(E12+F12,MIN(E12+(E12=0)*999+(F12+(F12=0)*999)%%+B12%%%%,F12+(F12=0)*999+(E12+(E12=0)*999)%%+B12%%%%),"без зачета") -> без зачета
